[Event "Titled Tuesday Blitz August 08 Late 2023"]
[White "Vlassov, Nikolai"]
[Black "Topalov, Aleksandar"]
[WhiteFideId "4103360"]
[BlackFideId "925659"]
[WhiteElo "2579"]
[BlackElo "2371"]
[Result "1-0"]
[Round "5"]
[TimeControl "180+1"]
[Date "2023.08.08"]
[WhiteClock "0:01:02"]
[BlackClock "0:00:00"]
[Board "121"]

1. e4 {[%clk 0:03:00]}  e6 {[%clk 0:02:59]} 2. c4 {[%clk 0:02:58]}  d5 {[%clk 0:02:48]} 3. cxd5 {[%clk 0:02:58]}  exd5 {[%clk 0:02:48]} 4. Qb3 {[%clk 0:02:57]}  Nf6 {[%clk 0:02:40]} 5. e5 {[%clk 0:02:57]}  Ne4 {[%clk 0:02:36]} 6. d4 {[%clk 0:02:56]}  Nc6 {[%clk 0:02:01]} 7. Bb5 {[%clk 0:02:54]}  Bb4+ {[%clk 0:01:52]} 8. Nc3 {[%clk 0:02:53]}  O-O {[%clk 0:01:29]} 9. Bxc6 {[%clk 0:02:51]}  Bxc3+ {[%clk 0:01:29]} 10. bxc3 {[%clk 0:02:52]}  bxc6 {[%clk 0:01:28]} 11. Ne2 {[%clk 0:02:47]}  Ba6 {[%clk 0:01:19]} 12. f3 {[%clk 0:02:41]}  Qh4+ {[%clk 0:00:59]} 13. g3 {[%clk 0:02:41]}  Qh5 {[%clk 0:00:59]} 14. c4 {[%clk 0:02:16]}  Bxc4 {[%clk 0:00:47]} 15. Qe3 {[%clk 0:02:15]}  Bxe2 {[%clk 0:00:40]} 16. fxe4 {[%clk 0:02:10]}  Bf3 {[%clk 0:00:33]} 17. O-O {[%clk 0:02:10]}  Bxe4 {[%clk 0:00:33]} 18. Rf4 {[%clk 0:02:01]}  Qd1+ {[%clk 0:00:27]} 19. Rf1 {[%clk 0:01:58]}  Qc2 {[%clk 0:00:25]} 20. Rf2 {[%clk 0:01:58]}  Qd1+ {[%clk 0:00:20]} 21. Rf1 {[%clk 0:01:58]}  Qc2 {[%clk 0:00:17]} 22. Qf2 {[%clk 0:01:51]}  Qxf2+ {[%clk 0:00:17]} 23. Rxf2 {[%clk 0:01:51]}  f6 {[%clk 0:00:15]} 24. Ba3 {[%clk 0:01:49]}  Rf7 {[%clk 0:00:13]} 25. e6 {[%clk 0:01:50]}  Rff8 {[%clk 0:00:07]} 26. Rc1 {[%clk 0:01:45]}  Rfe8 {[%clk 0:00:06]} 27. Rxc6 {[%clk 0:01:44]}  Rab8 {[%clk 0:00:05]} 28. Rb2 {[%clk 0:01:38]}  Rxb2 {[%clk 0:00:03]} 29. Bxb2 {[%clk 0:01:38]}  Bf5 {[%clk 0:00:03]} 30. Rxc7 {[%clk 0:01:38]}  Rxe6 {[%clk 0:00:02]} 31. Rxa7 {[%clk 0:01:25]}  Re2 {[%clk 0:00:02]} 32. Bc3 {[%clk 0:01:20]}  Bh3 {[%clk 0:00:02]} 33. Rc7 {[%clk 0:01:04]}  Re3 {[%clk 0:00:01]} 34. Kf2 {[%clk 0:01:03]}  Rd3 {[%clk 0:00:00]} 35. Ke2 {[%clk 0:01:02]} 1-0


[Site "https://www.chess.com"]

[Event "Titled Tuesday Blitz August 08 Late 2023"]
[White "Leschinsky, Gary"]
[Black "Manukyan, Sargis A."]
[WhiteFideId "30951321"]
[BlackFideId "13303970"]
[WhiteElo "2368"]
[BlackElo "2568"]
[Result "1-0"]
[Round "5"]
[TimeControl "180+1"]
[Date "2023.08.08"]
[WhiteClock "0:00:15"]
[BlackClock "0:00:47"]
[Board "122"]

1. d4 {[%clk 0:03:00]}  d5 {[%clk 0:02:59]} 2. c4 {[%clk 0:02:59]}  e6 {[%clk 0:02:59]} 3. Nc3 {[%clk 0:02:59]}  Nf6 {[%clk 0:03:00]} 4. cxd5 {[%clk 0:02:59]}  Nxd5 {[%clk 0:03:00]} 5. e4 {[%clk 0:02:57]}  Nxc3 {[%clk 0:03:00]} 6. bxc3 {[%clk 0:02:57]}  c5 {[%clk 0:03:01]} 7. a3 {[%clk 0:02:58]}  cxd4 {[%clk 0:03:02]} 8. cxd4 {[%clk 0:02:58]}  Nc6 {[%clk 0:03:01]} 9. Nf3 {[%clk 0:02:58]}  Be7 {[%clk 0:02:59]} 10. Bc4 {[%clk 0:02:56]}  O-O {[%clk 0:03:00]} 11. O-O {[%clk 0:02:57]}  b6 {[%clk 0:03:00]} 12. Be3 {[%clk 0:02:56]}  Bb7 {[%clk 0:03:01]} 13. Qe2 {[%clk 0:02:56]}  Rc8 {[%clk 0:03:01]} 14. Rfd1 {[%clk 0:02:55]}  Qc7 {[%clk 0:02:59]} 15. Ba2 {[%clk 0:02:41]}  Rfd8 {[%clk 0:02:51]} 16. d5 {[%clk 0:02:10]}  exd5 {[%clk 0:02:47]} 17. exd5 {[%clk 0:02:11]}  Ne5 {[%clk 0:02:43]} 18. Rac1 {[%clk 0:02:07]}  Nxf3+ {[%clk 0:02:40]} 19. Qxf3 {[%clk 0:02:05]}  Qd6 {[%clk 0:02:34]} 20. Rxc8 {[%clk 0:01:56]}  Rxc8 {[%clk 0:02:33]} 21. Bf4 {[%clk 0:01:57]}  Qxa3 {[%clk 0:02:33]} 22. Qxa3 {[%clk 0:01:36]}  Bxa3 {[%clk 0:02:32]} 23. d6 {[%clk 0:01:37]}  Rd8 {[%clk 0:02:30]} 24. Bd5 {[%clk 0:01:08]}  Bxd5 {[%clk 0:02:18]} 25. Rxd5 {[%clk 0:01:09]}  f6 {[%clk 0:02:16]} 26. d7 {[%clk 0:01:00]}  Kf7 {[%clk 0:02:15]} 27. Bc7 {[%clk 0:01:00]}  Be7 {[%clk 0:02:04]} 28. Bxd8 {[%clk 0:00:59]}  Bxd8 {[%clk 0:02:05]} 29. Kf1 {[%clk 0:00:59]}  Ke6 {[%clk 0:02:02]} 30. Rd4 {[%clk 0:00:57]}  a5 {[%clk 0:01:55]} 31. Ke2 {[%clk 0:00:56]}  b5 {[%clk 0:01:52]} 32. Kd3 {[%clk 0:00:56]}  Ke7 {[%clk 0:01:38]} 33. Rd5 {[%clk 0:00:54]}  b4 {[%clk 0:01:32]} 34. Kc4 {[%clk 0:00:52]}  Bc7 {[%clk 0:01:33]} 35. Kb3 {[%clk 0:00:48]}  Kd8 {[%clk 0:01:31]} 36. Ka4 {[%clk 0:00:46]}  Bxh2 {[%clk 0:01:28]} 37. g3 {[%clk 0:00:40]}  g5 {[%clk 0:01:19]} 38. Rd1 {[%clk 0:00:34]}  h5 {[%clk 0:01:04]} 39. Rh1 {[%clk 0:00:33]}  h4 {[%clk 0:01:00]} 40. Rxh2 {[%clk 0:00:31]}  hxg3 {[%clk 0:01:01]} 41. fxg3 {[%clk 0:00:32]}  Kxd7 {[%clk 0:01:02]} 42. Kxa5 {[%clk 0:00:32]}  Ke6 {[%clk 0:01:02]} 43. Kxb4 {[%clk 0:00:31]}  Kf5 {[%clk 0:01:03]} 44. Kc3 {[%clk 0:00:18]}  Kg4 {[%clk 0:01:03]} 45. Rf2 {[%clk 0:00:18]}  Kxg3 {[%clk 0:00:56]} 46. Rxf6 {[%clk 0:00:18]}  g4 {[%clk 0:00:57]} 47. Kd2 {[%clk 0:00:18]}  Kg2 {[%clk 0:00:58]} 48. Ke2 {[%clk 0:00:19]}  g3 {[%clk 0:00:59]} 49. Rg6 {[%clk 0:00:17]}  Kh2 {[%clk 0:00:50]} 50. Kf3 {[%clk 0:00:17]}  g2 {[%clk 0:00:51]} 51. Rxg2+ {[%clk 0:00:16]}  Kh1 {[%clk 0:00:47]} 52. Rg8 {[%clk 0:00:15]} 1-0


[Site "https://www.chess.com"]

[Event "Titled Tuesday Blitz August 08 Late 2023"]
[White "D`Arruda, Ricardo D."]
[Black "Carrasco Miranda, Andres"]
[WhiteFideId "100692"]
[BlackFideId "3405990"]
[WhiteElo "2502"]
[BlackElo "2350"]
[Result "1-0"]
[Round "5"]
[TimeControl "180+1"]
[Date "2023.08.08"]
[WhiteClock "0:00:35"]
[BlackClock "0:00:02"]
[Board "124"]

1. d4 {[%clk 0:03:00]}  Nf6 {[%clk 0:02:59]} 2. Nf3 {[%clk 0:03:00]}  g6 {[%clk 0:02:59]} 3. Nc3 {[%clk 0:03:00]}  d5 {[%clk 0:02:59]} 4. Bg5 {[%clk 0:03:00]}  Bg7 {[%clk 0:02:57]} 5. Bxf6 {[%clk 0:02:59]}  exf6 {[%clk 0:02:56]} 6. e3 {[%clk 0:02:58]}  O-O {[%clk 0:02:56]} 7. Ne2 {[%clk 0:02:59]}  c5 {[%clk 0:02:52]} 8. dxc5 {[%clk 0:02:58]}  Qa5+ {[%clk 0:02:52]} 9. c3 {[%clk 0:02:58]}  Qxc5 {[%clk 0:02:52]} 10. Nf4 {[%clk 0:02:52]}  Rd8 {[%clk 0:02:47]} 11. Qd4 {[%clk 0:02:49]}  b6 {[%clk 0:02:44]} 12. O-O-O {[%clk 0:02:46]}  Bb7 {[%clk 0:02:43]} 13. Bc4 {[%clk 0:02:31]}  Qa5 {[%clk 0:02:25]} 14. Bxd5 {[%clk 0:02:16]}  Bxd5 {[%clk 0:02:22]} 15. Nxd5 {[%clk 0:02:15]}  Nc6 {[%clk 0:02:22]} 16. Qc4 {[%clk 0:02:08]}  Rdc8 {[%clk 0:02:16]} 17. Qb3 {[%clk 0:02:07]}  Qc5 {[%clk 0:02:05]} 18. Rd3 {[%clk 0:01:49]}  Na5 {[%clk 0:02:01]} 19. Qb4 {[%clk 0:01:49]}  Qxb4 {[%clk 0:01:36]} 20. Nxb4 {[%clk 0:01:50]}  Nc4 {[%clk 0:01:34]} 21. Nd5 {[%clk 0:01:48]}  Kf8 {[%clk 0:01:33]} 22. Rhd1 {[%clk 0:01:47]}  b5 {[%clk 0:01:30]} 23. Kb1 {[%clk 0:01:46]}  a5 {[%clk 0:01:30]} 24. b3 {[%clk 0:01:44]}  Na3+ {[%clk 0:01:29]} 25. Kb2 {[%clk 0:01:44]}  b4 {[%clk 0:01:18]} 26. Nb6 {[%clk 0:01:42]}  f5 {[%clk 0:01:18]} 27. Nxc8 {[%clk 0:01:41]}  Rxc8 {[%clk 0:01:11]} 28. Rd8+ {[%clk 0:01:31]}  Rxd8 {[%clk 0:01:11]} 29. Rxd8+ {[%clk 0:01:32]}  Ke7 {[%clk 0:01:10]} 30. Ra8 {[%clk 0:01:31]}  Nb5 {[%clk 0:00:20]} 31. Rxa5 {[%clk 0:01:28]}  Nxc3 {[%clk 0:00:20]} 32. Kc2 {[%clk 0:01:21]}  Ne4 {[%clk 0:00:19]} 33. Ra7+ {[%clk 0:01:17]}  Kf6 {[%clk 0:00:18]} 34. Rb7 {[%clk 0:01:11]}  Bf8 {[%clk 0:00:17]} 35. h4 {[%clk 0:01:03]}  h6 {[%clk 0:00:16]} 36. Ne1 {[%clk 0:00:52]}  Nxf2 {[%clk 0:00:16]} 37. Nd3 {[%clk 0:00:53]}  Ng4 {[%clk 0:00:14]} 38. Kd2 {[%clk 0:00:53]}  g5 {[%clk 0:00:09]} 39. hxg5+ {[%clk 0:00:52]}  hxg5 {[%clk 0:00:10]} 40. Nxb4 {[%clk 0:00:52]}  Bc5 {[%clk 0:00:09]} 41. Nc2 {[%clk 0:00:52]}  Ke6 {[%clk 0:00:07]} 42. b4 {[%clk 0:00:51]}  Bd6 {[%clk 0:00:07]} 43. a4 {[%clk 0:00:51]}  Ne5 {[%clk 0:00:07]} 44. a5 {[%clk 0:00:50]}  Nc4+ {[%clk 0:00:03]} 45. Ke2 {[%clk 0:00:50]}  f4 {[%clk 0:00:03]} 46. a6 {[%clk 0:00:47]}  fxe3 {[%clk 0:00:02]} 47. a7 {[%clk 0:00:47]}  Ne5 {[%clk 0:00:02]} 48. a8=Q {[%clk 0:00:45]}  f5 {[%clk 0:00:02]} 49. Qc8+ {[%clk 0:00:42]}  Kd5 {[%clk 0:00:02]} 50. Nxe3+ {[%clk 0:00:42]}  Ke4 {[%clk 0:00:02]} 51. Qc2+ {[%clk 0:00:39]}  Kf4 {[%clk 0:00:02]} 52. Qxf5+ {[%clk 0:00:39]}  Kg3 {[%clk 0:00:02]} 53. Qxg5+ {[%clk 0:00:36]}  Kh2 {[%clk 0:00:02]} 54. Qh4+ {[%clk 0:00:36]}  Kg1 {[%clk 0:00:02]} 55. Qf2+ {[%clk 0:00:35]}  Kh1 {[%clk 0:00:02]} 56. Rh7# {[%clk 0:00:35]} 1-0


[Site "https://www.chess.com"]

[Event "Titled Tuesday Blitz August 08 Late 2023"]
[White "The_Straightforward_Rook"]
[Black "Michalczak, Thomas"]
[BlackFideId "4622634"]
[WhiteElo "2281"]
[BlackElo "2497"]
[Result "1-0"]
[Round "5"]
[TimeControl "180+1"]
[Date "2023.08.08"]
[WhiteClock "0:00:30"]
[BlackClock "0:00:03"]
[Board "126"]

1. d4 {[%clk 0:03:00]}  Nf6 {[%clk 0:02:58]} 2. c4 {[%clk 0:03:00]}  e6 {[%clk 0:02:58]} 3. Nf3 {[%clk 0:03:01]}  d5 {[%clk 0:02:58]} 4. cxd5 {[%clk 0:03:01]}  exd5 {[%clk 0:02:58]} 5. Nc3 {[%clk 0:03:02]}  c6 {[%clk 0:02:58]} 6. Qc2 {[%clk 0:03:01]}  g6 {[%clk 0:02:52]} 7. Bf4 {[%clk 0:02:59]}  Bf5 {[%clk 0:02:48]} 8. Qb3 {[%clk 0:02:59]}  Qb6 {[%clk 0:02:47]} 9. e3 {[%clk 0:02:58]}  Nbd7 {[%clk 0:02:33]} 10. Nd2 {[%clk 0:02:57]}  Be7 {[%clk 0:02:27]} 11. h3 {[%clk 0:02:57]}  h5 {[%clk 0:02:26]} 12. Be2 {[%clk 0:02:55]}  O-O {[%clk 0:02:10]} 13. O-O {[%clk 0:02:56]}  Qxb3 {[%clk 0:02:09]} 14. Nxb3 {[%clk 0:02:53]}  a5 {[%clk 0:02:00]} 15. Na4 {[%clk 0:02:43]}  Ne4 {[%clk 0:01:54]} 16. Rfc1 {[%clk 0:02:39]}  Bd6 {[%clk 0:01:51]} 17. Bxd6 {[%clk 0:02:29]}  Nxd6 {[%clk 0:01:51]} 18. Nac5 {[%clk 0:02:30]}  Nxc5 {[%clk 0:01:49]} 19. Nxc5 {[%clk 0:02:29]}  Rfe8 {[%clk 0:01:44]} 20. Bd3 {[%clk 0:02:23]}  Bxd3 {[%clk 0:01:44]} 21. Nxd3 {[%clk 0:02:24]}  Re7 {[%clk 0:01:40]} 22. b3 {[%clk 0:02:22]}  Kg7 {[%clk 0:01:36]} 23. Rc2 {[%clk 0:02:17]}  h4 {[%clk 0:01:35]} 24. Rac1 {[%clk 0:02:15]}  g5 {[%clk 0:01:29]} 25. Ne5 {[%clk 0:02:11]}  f6 {[%clk 0:01:28]} 26. Nf3 {[%clk 0:02:03]}  Kg6 {[%clk 0:01:26]} 27. Re1 {[%clk 0:01:53]}  Kf5 {[%clk 0:01:25]} 28. Nd2 {[%clk 0:01:52]}  Ke6 {[%clk 0:01:24]} 29. f3 {[%clk 0:01:46]}  Kd7 {[%clk 0:01:24]} 30. Kf2 {[%clk 0:01:47]}  Rae8 {[%clk 0:01:22]} 31. Nb1 {[%clk 0:01:44]}  Nf5 {[%clk 0:01:19]} 32. Rce2 {[%clk 0:01:40]}  Ng3 {[%clk 0:01:19]} 33. Rd2 {[%clk 0:01:41]}  Nf5 {[%clk 0:01:19]} 34. Rde2 {[%clk 0:01:40]}  b5 {[%clk 0:01:16]} 35. Nc3 {[%clk 0:01:36]}  a4 {[%clk 0:01:11]} 36. bxa4 {[%clk 0:01:35]}  b4 {[%clk 0:01:11]} 37. Nd1 {[%clk 0:01:30]}  Ra8 {[%clk 0:01:12]} 38. Nb2 {[%clk 0:01:30]}  Nd6 {[%clk 0:01:10]} 39. e4 {[%clk 0:01:28]}  dxe4 {[%clk 0:01:09]} 40. fxe4 {[%clk 0:01:29]}  Ra5 {[%clk 0:01:03]} 41. Kf3 {[%clk 0:01:27]}  c5 {[%clk 0:00:59]} 42. e5 {[%clk 0:01:17]}  fxe5 {[%clk 0:00:57]} 43. dxe5 {[%clk 0:01:18]}  Nf5 {[%clk 0:00:56]} 44. Nc4 {[%clk 0:01:18]}  Nd4+ {[%clk 0:00:55]} 45. Kg4 {[%clk 0:01:17]}  Ra6 {[%clk 0:00:45]} 46. Rf2 {[%clk 0:01:16]}  Ne6 {[%clk 0:00:43]} 47. a5 {[%clk 0:01:08]}  Kc6 {[%clk 0:00:42]} 48. Rf6 {[%clk 0:01:07]}  Kb5 {[%clk 0:00:40]} 49. Rc1 {[%clk 0:01:00]}  Ra8 {[%clk 0:00:33]} 50. a4+ {[%clk 0:00:55]}  bxa3 {[%clk 0:00:29]} 51. Nxa3+ {[%clk 0:00:55]}  Kxa5 {[%clk 0:00:24]} 52. Nc4+ {[%clk 0:00:43]}  Kb5 {[%clk 0:00:24]} 53. Nd6+ {[%clk 0:00:43]}  Kc6 {[%clk 0:00:23]} 54. Nf5 {[%clk 0:00:42]}  Ra4+ {[%clk 0:00:23]} 55. Kh5 {[%clk 0:00:38]}  Re8 {[%clk 0:00:18]} 56. Ng7 {[%clk 0:00:33]}  Rh8+ {[%clk 0:00:03]} 57. Kg6 {[%clk 0:00:33]}  Kd5 {[%clk 0:00:04]} 58. Nxe6 {[%clk 0:00:31]}  Ra6 {[%clk 0:00:04]} 59. Nc7+ {[%clk 0:00:30]}  Kxe5 {[%clk 0:00:03]} 60. Nxa6 {[%clk 0:00:30]} 1-0


[Site "https://www.chess.com"]

[Event "Titled Tuesday Blitz August 08 Late 2023"]
[White "Mickiewicz, Piotr"]
[Black "Merino Garcia, Rafael II"]
[WhiteFideId "1114891"]
[BlackFideId "2209128"]
[WhiteElo "2492"]
[BlackElo "2272"]
[Result "1-0"]
[Round "5"]
[TimeControl "180+1"]
[Date "2023.08.08"]
[WhiteClock "0:01:12"]
[BlackClock "0:00:45"]
[Board "127"]

1. Nf3 {[%clk 0:03:00]}  Nf6 {[%clk 0:02:59]} 2. c4 {[%clk 0:02:59]}  e6 {[%clk 0:02:58]} 3. g3 {[%clk 0:02:57]}  b6 {[%clk 0:02:54]} 4. b3 {[%clk 0:02:57]}  Bb7 {[%clk 0:02:54]} 5. Bg2 {[%clk 0:02:58]}  g6 {[%clk 0:02:54]} 6. Bb2 {[%clk 0:02:58]}  Bg7 {[%clk 0:02:54]} 7. O-O {[%clk 0:02:58]}  O-O {[%clk 0:02:55]} 8. Qc2 {[%clk 0:02:56]}  c5 {[%clk 0:02:54]} 9. d3 {[%clk 0:02:52]}  d6 {[%clk 0:02:47]} 10. Nbd2 {[%clk 0:02:50]}  Nc6 {[%clk 0:02:46]} 11. a3 {[%clk 0:02:48]}  Qe7 {[%clk 0:02:34]} 12. Bc3 {[%clk 0:02:46]}  e5 {[%clk 0:02:31]} 13. e3 {[%clk 0:02:45]}  Ne8 {[%clk 0:02:15]} 14. b4 {[%clk 0:02:39]}  f5 {[%clk 0:02:15]} 15. b5 {[%clk 0:02:38]}  Nd8 {[%clk 0:02:14]} 16. Ne1 {[%clk 0:02:33]}  Bxg2 {[%clk 0:02:06]} 17. Nxg2 {[%clk 0:02:34]}  Nf6 {[%clk 0:02:01]} 18. Qb2 {[%clk 0:02:27]}  Ne6 {[%clk 0:01:58]} 19. a4 {[%clk 0:02:24]}  f4 {[%clk 0:01:52]} 20. a5 {[%clk 0:02:14]}  Ng5 {[%clk 0:01:42]} 21. h4 {[%clk 0:02:02]}  fxe3 {[%clk 0:01:30]} 22. hxg5 {[%clk 0:01:55]}  exf2+ {[%clk 0:01:30]} 23. Rxf2 {[%clk 0:01:53]}  Nh5 {[%clk 0:01:30]} 24. Ne4 {[%clk 0:01:51]}  Rxf2 {[%clk 0:01:25]} 25. Qxf2 {[%clk 0:01:52]}  Rf8 {[%clk 0:01:23]} 26. Qe2 {[%clk 0:01:50]}  h6 {[%clk 0:01:19]} 27. gxh6 {[%clk 0:01:45]}  Bxh6 {[%clk 0:01:18]} 28. axb6 {[%clk 0:01:44]}  axb6 {[%clk 0:01:18]} 29. Ra6 {[%clk 0:01:38]}  Ng7 {[%clk 0:01:07]} 30. Rxb6 {[%clk 0:01:29]}  Nf5 {[%clk 0:01:07]} 31. Qg4 {[%clk 0:01:22]}  Kh7 {[%clk 0:01:01]} 32. Kh2 {[%clk 0:01:19]}  Qa7 {[%clk 0:00:52]} 33. Ra6 {[%clk 0:01:15]}  Qf7 {[%clk 0:00:52]} 34. Nxd6 {[%clk 0:01:11]}  Nxd6 {[%clk 0:00:45]} 35. Rxd6 {[%clk 0:01:12]} 1-0


[Site "https://www.chess.com"]

[Event "Titled Tuesday Blitz August 08 Late 2023"]
[White "Prithu Gupta"]
[Black "Josgar05"]
[WhiteFideId "46618546"]
[WhiteElo "2450"]
[BlackElo "2257"]
[Result "1-0"]
[Round "5"]
[TimeControl "180+1"]
[Date "2023.08.08"]
[WhiteClock "0:01:09"]
[BlackClock "0:00:14"]
[Board "129"]

1. d4 {[%clk 0:02:59]}  g6 {[%clk 0:02:58]} 2. c4 {[%clk 0:02:59]}  Bg7 {[%clk 0:02:58]} 3. Nc3 {[%clk 0:02:59]}  Nf6 {[%clk 0:02:56]} 4. e4 {[%clk 0:02:59]}  d6 {[%clk 0:02:53]} 5. Be2 {[%clk 0:02:59]}  c5 {[%clk 0:02:51]} 6. dxc5 {[%clk 0:02:51]}  dxc5 {[%clk 0:02:52]} 7. Qxd8+ {[%clk 0:02:50]}  Kxd8 {[%clk 0:02:53]} 8. e5 {[%clk 0:02:51]}  Ne8 {[%clk 0:02:41]} 9. f4 {[%clk 0:02:50]}  Nc7 {[%clk 0:02:42]} 10. Nf3 {[%clk 0:02:50]}  Ne6 {[%clk 0:02:41]} 11. Be3 {[%clk 0:02:50]}  Nc6 {[%clk 0:02:41]} 12. O-O-O+ {[%clk 0:02:50]}  Ke8 {[%clk 0:02:42]} 13. Nd5 {[%clk 0:02:46]}  Rb8 {[%clk 0:02:35]} 14. g4 {[%clk 0:02:46]}  h5 {[%clk 0:02:19]} 15. gxh5 {[%clk 0:02:28]}  Rxh5 {[%clk 0:02:10]} 16. Ng5 {[%clk 0:02:26]}  Rh8 {[%clk 0:01:54]} 17. Nxe6 {[%clk 0:02:25]}  Bxe6 {[%clk 0:01:55]} 18. Nc7+ {[%clk 0:02:24]}  Kf8 {[%clk 0:01:55]} 19. Nxe6+ {[%clk 0:02:24]}  fxe6 {[%clk 0:01:56]} 20. Bxc5 {[%clk 0:02:20]}  Bh6 {[%clk 0:01:50]} 21. Be3 {[%clk 0:02:16]}  Nxe5 {[%clk 0:01:47]} 22. Bd4 {[%clk 0:02:11]}  Bxf4+ {[%clk 0:01:44]} 23. Kc2 {[%clk 0:02:10]}  g5 {[%clk 0:01:44]} 24. Rdf1 {[%clk 0:02:07]}  Ng6 {[%clk 0:00:52]} 25. Bxh8 {[%clk 0:02:03]}  Nxh8 {[%clk 0:00:53]} 26. h4 {[%clk 0:02:02]}  e5 {[%clk 0:00:49]} 27. hxg5 {[%clk 0:02:02]}  Kg7 {[%clk 0:00:48]} 28. Bd3 {[%clk 0:02:02]}  Ng6 {[%clk 0:00:38]} 29. Rh6 {[%clk 0:02:01]}  Nf8 {[%clk 0:00:39]} 30. Rfh1 {[%clk 0:01:45]}  Rd8 {[%clk 0:00:34]} 31. R6h3 {[%clk 0:01:40]}  Bxg5 {[%clk 0:00:23]} 32. Rg3 {[%clk 0:01:36]}  Kf6 {[%clk 0:00:23]} 33. Rf1+ {[%clk 0:01:31]}  Bf4 {[%clk 0:00:23]} 34. Rg8 {[%clk 0:01:31]}  Kf7 {[%clk 0:00:22]} 35. Rfg1 {[%clk 0:01:29]}  Bh6 {[%clk 0:00:19]} 36. c5 {[%clk 0:01:21]}  Rc8 {[%clk 0:00:19]} 37. b4 {[%clk 0:01:18]}  Rc6 {[%clk 0:00:17]} 38. Bc4+ {[%clk 0:01:17]}  Kf6 {[%clk 0:00:17]} 39. Bd5 {[%clk 0:01:14]}  Rc7 {[%clk 0:00:17]} 40. Be4 {[%clk 0:01:14]}  Bf4 {[%clk 0:00:14]} 41. Rxf8+ {[%clk 0:01:13]}  Ke6 {[%clk 0:00:15]} 42. Bf5+ {[%clk 0:01:13]}  Kd5 {[%clk 0:00:14]} 43. Rd1+ {[%clk 0:01:13]}  Kc4 {[%clk 0:00:15]} 44. a3 {[%clk 0:01:12]}  Kb5 {[%clk 0:00:14]} 45. Kb3 {[%clk 0:01:11]}  a5 {[%clk 0:00:14]} 46. a4+ {[%clk 0:01:09]}  Kc6 {[%clk 0:00:14]} 47. Be4# {[%clk 0:01:09]} 1-0


[Site "https://www.chess.com"]

[Event "Titled Tuesday Blitz August 08 Late 2023"]
[White "Castro Silva, Moises Antonio"]
[Black "Sailer, Mike"]
[WhiteFideId "3909794"]
[BlackFideId "2012901"]
[WhiteElo "2444"]
[BlackElo "2198"]
[Result "0-1"]
[Round "5"]
[TimeControl "180+1"]
[Date "2023.08.08"]
[WhiteClock "0:00:00"]
[BlackClock "0:00:04"]
[Board "130"]

1. e4 {[%clk 0:03:00]}  d5 {[%clk 0:02:58]} 2. exd5 {[%clk 0:03:00]}  Qxd5 {[%clk 0:02:57]} 3. Nc3 {[%clk 0:03:00]}  Qd6 {[%clk 0:02:57]} 4. d4 {[%clk 0:03:00]}  Nf6 {[%clk 0:02:56]} 5. Nf3 {[%clk 0:03:01]}  c6 {[%clk 0:02:57]} 6. Ne5 {[%clk 0:03:00]}  Nbd7 {[%clk 0:02:54]} 7. Bf4 {[%clk 0:02:59]}  Nd5 {[%clk 0:02:47]} 8. Bg3 {[%clk 0:02:24]}  Nxc3 {[%clk 0:02:39]} 9. bxc3 {[%clk 0:02:25]}  Nxe5 {[%clk 0:02:39]} 10. Bxe5 {[%clk 0:02:25]}  Qg6 {[%clk 0:02:23]} 11. Qf3 {[%clk 0:02:03]}  Qxc2 {[%clk 0:02:11]} 12. Bc4 {[%clk 0:02:04]}  e6 {[%clk 0:02:00]} 13. O-O {[%clk 0:02:03]}  Qf5 {[%clk 0:01:52]} 14. Qxf5 {[%clk 0:01:49]}  exf5 {[%clk 0:01:51]} 15. d5 {[%clk 0:01:50]}  f6 {[%clk 0:01:36]} 16. Bg3 {[%clk 0:01:39]}  Bc5 {[%clk 0:01:26]} 17. Rfe1+ {[%clk 0:01:33]}  Kf8 {[%clk 0:01:20]} 18. dxc6 {[%clk 0:01:10]}  bxc6 {[%clk 0:01:19]} 19. Rad1 {[%clk 0:01:11]}  g5 {[%clk 0:00:57]} 20. Rd8+ {[%clk 0:01:01]}  Kg7 {[%clk 0:00:57]} 21. Rxh8 {[%clk 0:00:52]}  Kxh8 {[%clk 0:00:56]} 22. Re8+ {[%clk 0:00:51]}  Kg7 {[%clk 0:00:56]} 23. Rg8+ {[%clk 0:00:45]}  Kh6 {[%clk 0:00:56]} 24. Bc7 {[%clk 0:00:30]}  Bb7 {[%clk 0:00:46]} 25. Bd8 {[%clk 0:00:29]}  Bb6 {[%clk 0:00:30]} 26. Bxf6 {[%clk 0:00:28]}  Rxg8 {[%clk 0:00:29]} 27. Bxg8 {[%clk 0:00:28]}  Kg6 {[%clk 0:00:28]} 28. Be5 {[%clk 0:00:25]}  Bd8 {[%clk 0:00:23]} 29. Be6 {[%clk 0:00:20]}  Bf6 {[%clk 0:00:21]} 30. Bb8 {[%clk 0:00:21]}  Bxc3 {[%clk 0:00:15]} 31. Bxa7 {[%clk 0:00:20]}  Kf6 {[%clk 0:00:12]} 32. Bc4 {[%clk 0:00:19]}  Ke5 {[%clk 0:00:10]} 33. Kf1 {[%clk 0:00:11]}  Bd4 {[%clk 0:00:09]} 34. Bb8+ {[%clk 0:00:11]}  Kf6 {[%clk 0:00:08]} 35. Ke2 {[%clk 0:00:10]}  c5 {[%clk 0:00:08]} 36. a4 {[%clk 0:00:10]}  Bxg2 {[%clk 0:00:08]} 37. a5 {[%clk 0:00:07]}  Ba8 {[%clk 0:00:08]} 38. a6 {[%clk 0:00:07]}  h5 {[%clk 0:00:07]} 39. Bc7 {[%clk 0:00:06]}  g4 {[%clk 0:00:07]} 40. Bf4 {[%clk 0:00:06]}  Be5 {[%clk 0:00:06]} 41. Be3 {[%clk 0:00:06]}  Bd4 {[%clk 0:00:06]} 42. Bd2 {[%clk 0:00:05]}  Ke5 {[%clk 0:00:06]} 43. Ba5 {[%clk 0:00:00]}  f4 {[%clk 0:00:04]} 0-1


[Site "https://www.chess.com"]

[Event "Titled Tuesday Blitz August 08 Late 2023"]
[White "Garmendiarov"]
[Black "Salemgareev, Tagir"]
[BlackFideId "24199052"]
[WhiteElo "2319"]
[BlackElo "2625"]
[Result "0-1"]
[Round "5"]
[TimeControl "180+1"]
[Date "2023.08.08"]
[WhiteClock "0:00:02"]
[BlackClock "0:00:16"]
[Board "132"]

1. e4 {[%clk 0:03:00]}  c5 {[%clk 0:02:57]} 2. Nf3 {[%clk 0:03:01]}  d6 {[%clk 0:02:55]} 3. d4 {[%clk 0:03:01]}  cxd4 {[%clk 0:02:55]} 4. Nxd4 {[%clk 0:03:02]}  Nf6 {[%clk 0:02:55]} 5. Nc3 {[%clk 0:03:03]}  a6 {[%clk 0:02:56]} 6. Rg1 {[%clk 0:03:03]}  e5 {[%clk 0:02:55]} 7. Nb3 {[%clk 0:03:04]}  h5 {[%clk 0:02:53]} 8. h3 {[%clk 0:03:04]}  Be6 {[%clk 0:02:50]} 9. Be3 {[%clk 0:03:04]}  Nbd7 {[%clk 0:02:46]} 10. Qd2 {[%clk 0:03:03]}  b5 {[%clk 0:02:42]} 11. O-O-O {[%clk 0:03:02]}  Rb8 {[%clk 0:02:21]} 12. f4 {[%clk 0:02:54]}  b4 {[%clk 0:02:04]} 13. Nd5 {[%clk 0:02:54]}  Nxe4 {[%clk 0:01:59]} 14. Qe1 {[%clk 0:02:48]}  a5 {[%clk 0:01:53]} 15. Kb1 {[%clk 0:02:13]}  a4 {[%clk 0:01:51]} 16. Nc1 {[%clk 0:02:13]}  a3 {[%clk 0:01:50]} 17. fxe5 {[%clk 0:01:30]}  axb2 {[%clk 0:01:46]} 18. Kxb2 {[%clk 0:01:22]}  Nxe5 {[%clk 0:01:36]} 19. Bf4 {[%clk 0:01:09]}  Nc3 {[%clk 0:01:33]} 20. Nxc3 {[%clk 0:00:27]}  bxc3+ {[%clk 0:01:32]} 21. Ka1 {[%clk 0:00:27]}  Qa5 {[%clk 0:01:01]} 22. Nb3 {[%clk 0:00:17]}  Rxb3 {[%clk 0:00:55]} 23. cxb3 {[%clk 0:00:12]}  Bxb3 {[%clk 0:00:55]} 24. Bb5+ {[%clk 0:00:11]}  Qxb5 {[%clk 0:00:54]} 25. axb3 {[%clk 0:00:11]}  Qxb3 {[%clk 0:00:51]} 26. Qe2 {[%clk 0:00:08]}  Qa4+ {[%clk 0:00:40]} 27. Qa2 {[%clk 0:00:06]}  Qxf4 {[%clk 0:00:40]} 28. Qa8+ {[%clk 0:00:05]}  Ke7 {[%clk 0:00:39]} 29. Rge1 {[%clk 0:00:03]}  c2 {[%clk 0:00:23]} 30. Qb7+ {[%clk 0:00:03]}  Kf6 {[%clk 0:00:22]} 31. Rc1 {[%clk 0:00:03]}  Kg6 {[%clk 0:00:17]} 32. Qc8 {[%clk 0:00:02]}  Be7 {[%clk 0:00:15]} 33. Qxc2+ {[%clk 0:00:02]}  Kh6 {[%clk 0:00:15]} 34. Qd2 {[%clk 0:00:02]}  Qxd2 {[%clk 0:00:14]} 35. Rcd1 {[%clk 0:00:02]}  Ra8+ {[%clk 0:00:14]} 36. Kb1 {[%clk 0:00:02]}  Rb8+ {[%clk 0:00:15]} 37. Ka1 {[%clk 0:00:02]}  Qb2# {[%clk 0:00:16]} 0-1


[Site "https://www.chess.com"]